fUSD/lending_fUSD_20250103
["ID","MTS","AMOUNT","RATE_DAILY","PERIOD"]
[347527868,1735903868110,-808.1,0.00010082,2]
[347527869,1735903868122,-629.25,0.00010082,2]
[347527870,1735903868131,-764.88,0.00010082,2]
[347527871,1735903868140,-1091.92,0.00010082,2]
[347527872,1735903868149,-500.0,0.00010082,2]
[347527873,1735903868158,-1803.37,0.00010082,2]
[347527874,1735903868167,-547.2,0.00010082,2]
[347527875,1735903868178,-793.55,0.00010082,2]
[347527876,1735903868187,-1960.24,0.00010082,2]
[347527877,1735903868196,-1098.5,0.00010082,2]
[347527878,1735903868206,-1005.26,0.00010082,2]
[347527879,1735903868215,-2287.89,0.00010082,2]
[347527880,1735903868225,-1376.76,0.00010082,2]
[347527881,1735903868234,-914.74,0.00010082,2]
[347527882,1735903868243,-542.12,0.00010082,2]
[347527883,1735903868252,-942.97,0.00010082,2]
[347527884,1735903868261,-845.27,0.00010082,2]
[347527885,1735903868270,-1785.49,0.00010082,2]
[347527886,1735903868279,-4316.05,0.00010082,2]
[347527887,1735903868289,-500.0,0.00010082,2]
[347527888,1735903868297,-2159.97,0.00010082,2]
[347527889,1735903868307,-736.25,0.00010082,2]
[347527890,1735903868316,-1334.42,0.00010082,2]
[347527891,1735903868325,-1495.62,0.00010082,2]
[347527892,1735903868335,-754.17,0.00010082,2]
[347527893,1735903868344,-500.0,0.00010082,2]
[347527894,1735903868353,-650.62,0.00010082,2]
[347527895,1735903868362,-4164.56,0.00010082,2]
[347527896,1735903868374,-500.0,0.00010082,2]
[347527897,1735903868383,-1625.31,0.00010082,2]
[347527898,1735903868392,-500.0,0.00010082,2]
[347527899,1735903868401,-611.39,0.00010082,2]
[347527900,1735903868411,-500.0,0.00010082,2]
[347527901,1735903868420,-986.21,0.00010082,2]
[347527902,1735903868430,-1298.73,0.00010082,2]
[347527903,1735903868439,-3531.11,0.00010082,2]
[347527904,1735903868449,-1023.42,0.00010082,2]
[347527905,1735903868458,-1089.53,0.00010082,2]
[347527906,1735903868468,-5813.27,0.00010082,2]
[347527907,1735903868478,-2817.31,0.00010082,2]
[347527908,1735903868487,-1045.47,0.00010082,2]
[347527909,1735903868496,-1481.72,0.00010082,2]
[347527910,1735903868505,-3420.76,0.00010082,2]
[347527911,1735903868514,-5258.68,0.00010082,2]
[347527912,1735903868523,-997.31,0.00010082,2]
[347527913,1735903868532,-857.28,0.00010082,2]
[347527914,1735903868541,-10810.93,0.00010082,2]
[347527915,1735903868550,-1042.24,0.00010082,2]
[347527916,1735903868560,-1826.67,0.00010082,2]
[347527917,1735903868569,-1028.72,0.00010082,2]
[347527918,1735903868578,-4944.06,0.00010082,2]
[347527919,1735903868587,-4381.19,0.00010082,2]
[347527920,1735903868596,-1208.64,0.00010082,2]
[347527921,1735903868605,-2263.34,0.00010082,2]
[347527922,1735903868614,-8233.14,0.00010082,2]
[347527923,1735903868623,-1743.67,0.00010082,2]
[347527924,1735903868632,-1356.78,0.00010082,2]
[347527925,1735903868641,-4030.14,0.00010082,2]
[347527926,1735903868651,-1180.61,0.00010082,2]
[347527927,1735903868660,-3155.79,0.00010082,2]
[347527928,1735903868669,-1269.56,0.00010082,2]
[347527929,1735903868678,-4857.77,0.00010082,2]
[347527930,1735903868687,-1773.18,0.00010082,2]
[347527931,1735903868696,-592.74,0.00010082,2]
[347527932,1735903868706,-1267.3,0.00010082,2]
[347527933,1735903868715,-8253.07,0.00010082,2]
[347527934,1735903868724,-500.0,0.00010082,2]
[347527935,1735903868733,-9575.94,0.00010082,2]
[347527936,1735903868742,-10330.45,0.00010082,2]
[347527937,1735903868751,-7775.68,0.00010082,2]
[347527938,1735903868759,-3274.39,0.00010082,2]
[347527939,1735903868768,-1872.61,0.00010082,2]
[347527940,1735903868777,-4887.13,0.00010082,2]
[347527941,1735903868786,-4449.35,0.00010082,2]
[347527942,1735903868795,-3427.99,0.00010082,2]
[347527943,1735903868804,-551.76,0.00010082,2]
[347527944,1735903868813,-2327.98,0.00010082,2]
[347527945,1735903868822,-4961.53,0.00010082,2]
[347527946,1735903868830,-847.8,0.00010082,2]
[347527947,1735903868839,-1585.98,0.00010082,2]
[347527948,1735903868850,-2872.31,0.00010082,2]
[347527949,1735903868859,-1639.91,0.00010082,2]
[347527950,1735903868870,-1877.41,0.00010082,2]
[347527951,1735903868881,-1119.93,0.00010082,2]
[347527952,1735903868890,-500.0,0.00010082,2]
[347527953,1735903868899,-2299.24,0.00010082,2]
[347527954,1735903868908,-2261.75,0.00010082,2]
[347527955,1735903868917,-500.0,0.00010082,2]
[347527956,1735903868926,-500.0,0.00010082,2]
[347527957,1735903868935,-660.66,0.00010082,2]
[347527958,1735903868945,-526.47,0.00010082,2]
[347527959,1735903868955,-2458.11,0.00010082,2]
[347527960,1735903868965,-5361.51,0.00010082,2]
[347527961,1735903868975,-1226.92,0.00010082,2]
[347527962,1735903868984,-1974.28,0.00010082,2]
[347527963,1735903868993,-899.29,0.00010082,2]
[347527964,1735903869003,-10201.99,0.00010082,2]
[347527965,1735903869016,-506.78,0.00010082,2]
[347527966,1735903869026,-1905.76,0.00010082,2]
[347527967,1735903869035,-1476.88,0.00010082,2]
[347527968,1735903869045,-500.0,0.00010083,2]
[347527969,1735903869054,-500.0,0.00010083,2]
[347527970,1735903869063,-786.32,0.00010083,2]
[347527971,1735903869072,-582.76,0.00010083,2]
[347527972,1735903869081,-500.0,0.00010083,2]
[347527973,1735903869091,-741.23,0.00010083,2]
[347527974,1735903869100,-500.0,0.00010083,2]
[347527975,1735903869118,-695.73,0.00010083,2]
[347527976,1735903869129,-500.0,0.00010083,2]
[347527977,1735903869138,-500.0,0.00010083,2]
[347527978,1735903869147,-500.0,0.00010083,2]
[347527979,1735903869157,-500.0,0.00010083,2]
[347527980,1735903869166,-500.0,0.00010083,2]
[347527981,1735903869175,-693.77,0.00010083,2]
[347527982,1735903869185,-500.0,0.00010083,2]
[347527983,1735903869194,-500.0,0.00010083,2]
[347527984,1735903869204,-500.0,0.00010083,2]
[347527985,1735903869214,-907.41,0.00010083,2]
[347527986,1735903869223,-878.15,0.00010083,2]
[347527987,1735903869232,-500.0,0.00010083,2]
[347527988,1735903869241,-874.72,0.00010083,2]
[347527989,1735903869251,-169.91313375,0.00010083,2]
[347527990,1735903869260,-500.0,0.00010083,2]
[347527991,1735903869270,-500.0,0.00010083,2]
[347527992,1735903869279,-500.0,0.00010083,2]
[347527993,1735903869289,-500.0,0.00010083,2]
[347527994,1735903869299,-1033.7,0.00010083,2]
[347527995,1735903869308,-628.62,0.00010083,2]
[347527996,1735903869318,-563.93,0.00010083,2]
[347527997,1735903869327,-500.0,0.00010083,2]
[347527998,1735903869337,-500.0,0.00010083,2]
[347527999,1735903869347,-500.0,0.00010083,2]
[347528000,1735903869356,-500.0,0.00010083,2]
[347528001,1735903869365,-500.0,0.00010083,2]
[347528002,1735903869375,-500.0,0.00010083,2]
[347528003,1735903869384,-500.0,0.00010083,2]
[347528004,1735903869394,-500.0,0.00010083,2]
[347528005,1735903869404,-500.0,0.00010083,2]
[347528006,1735903869413,-3393.054164,0.00010083,2]
[347528007,1735903869423,-975.61,0.00010083,2]
[347528008,1735903869432,-500.0,0.00010083,2]
[347528009,1735903869441,-720.4,0.00010083,2]
[347528010,1735903869451,-500.0,0.00010083,2]
[347528011,1735903869460,-699.88,0.00010083,2]
[347528012,1735903869475,-500.0,0.00010083,2]
[347528013,1735903869484,-527.2,0.00010083,2]
[347528014,1735903869493,-3577.129262,0.00010083,2]
[347528015,1735903869503,-500.0,0.00010083,2]
[347528016,1735903869512,-657.55,0.00010083,2]
[347528017,1735903869522,-1083.0,0.00010083,2]
[347528018,1735903869532,-500.0,0.00010083,2]
[347528019,1735903869541,-550.96,0.00010083,2]
[347528020,1735903869551,-500.0,0.00010083,2]
[347528021,1735903869561,-500.0,0.00010083,2]
[347528022,1735903869570,-1091.28,0.00010083,2]
[347528023,1735903869579,-500.0,0.00010083,2]
[347528024,1735903869589,-620.43,0.00010083,2]
[347528025,1735903869601,-500.0,0.00010083,2]
[347528026,1735903869611,-500.0,0.00010083,2]
[347528027,1735903869621,-554.52,0.00010083,2]
[347528028,1735903869631,-637.58,0.00010083,2]
[347528029,1735903869640,-1163.66,0.00010083,2]
[347528030,1735903869650,-570.62,0.00010083,2]
[347528031,1735903869660,-500.0,0.00010083,2]
[347528032,1735903869670,-541.23,0.00010083,2]
[347528033,1735903869679,-691.37,0.00010083,2]
[347528034,1735903869690,-500.0,0.00010083,2]
[347528035,1735903869700,-500.0,0.00010083,2]
[347528036,1735903869710,-500.0,0.00010083,2]
[347528037,1735903869720,-500.0,0.00010083,2]
[347528038,1735903869731,-7807.56,0.00010083,2]
[347528039,1735903869741,-500.0,0.00010083,2]
[347528040,1735903869751,-1295.69,0.00010083,2]
[347528041,1735903869761,-1479.98,0.00010083,2]
[347528042,1735903869771,-553.08,0.00010083,2]
[347528043,1735903869780,-500.0,0.00010083,2]
[347528044,1735903869789,-1415.87,0.00010083,2]
[347528045,1735903869800,-2949.36,0.00010083,2]
[347528046,1735903869811,-568.75,0.00010083,2]
[347528047,1735903869821,-500.0,0.00010083,2]
[347528048,1735903869831,-500.0,0.00010083,2]
[347528049,1735903869841,-695.69,0.00010083,2]
[347528050,1735903869850,-500.0,0.00010083,2]
[347528051,1735903869860,-1390.9,0.00010083,2]
[347528052,1735903869869,-636.01,0.00010083,2]
[347528053,1735903869884,-1706.23,0.00010083,2]
[347528054,1735903869894,-573.64,0.00010083,2]
[347528055,1735903869905,-554.27,0.00010083,2]
[347528056,1735903869916,-1278.06,0.00010083,2]
[347528057,1735903869927,-500.0,0.00010083,2]
[347528058,1735903869936,-500.0,0.00010083,2]
[347528059,1735903869946,-500.0,0.00010083,2]
[347528060,1735903869956,-500.0,0.00010083,2]
[347528061,1735903869965,-1783.18,0.00010083,2]
[347528062,1735903869974,-2243.13,0.00010083,2]
[347528063,1735903869985,-500.0,0.00010083,2]
[347528064,1735903869995,-639.25,0.00010083,2]
[347528065,1735903870005,-1198.54,0.00010083,2]
[347528066,1735903870017,-500.0,0.00010083,2]
[347528067,1735903870027,-574.92,0.00010083,2]
[347528068,1735903870036,-5301.03,0.00010083,2]
[347528069,1735903870046,-1571.93,0.00010083,2]
[347528070,1735903870057,-300.28321719,0.00010083,2]
[347528071,1735903870068,-1080.42,0.00010083,2]
[347528072,1735903870078,-819.77,0.00010083,2]
[347528073,1735903870088,-245.40244956,0.00010083,2]
[347528074,1735903870099,-535.54,0.00010083,2]
[347528075,1735903870108,-1596.33,0.00010083,2]
[347528076,1735903870118,-700.38,0.00010083,2]
[347528077,1735903870128,-500.0,0.00010083,2]
[347528078,1735903870137,-3799.63,0.00010083,2]
[347528079,1735903870146,-500.0,0.00010083,2]
[347528080,1735903870156,-500.0,0.00010083,2]
[347528081,1735903870166,-594.8,0.00010083,2]
[347528082,1735903870177,-500.0,0.00010083,2]
[347528083,1735903870186,-980.87,0.00010083,2]
[347528084,1735903870196,-500.0,0.00010083,2]
[347528085,1735903870206,-627.51,0.00010083,2]
[347528086,1735903870216,-1039.78,0.00010083,2]
[347528087,1735903870225,-500.0,0.00010083,2]
[347528088,1735903870234,-1517.42,0.00010083,2]
[347528089,1735903870243,-1294.89,0.00010083,2]
[347528090,1735903870252,-729.16,0.00010083,2]
[347528091,1735903870261,-1378.24,0.00010083,2]
[347528092,1735903870271,-500.0,0.00010083,2]
[347528093,1735903870279,-3001.42,0.00010083,2]
[347528094,1735903870288,-660.04,0.00010083,2]
[347528095,1735903870297,-640.82,0.00010083,2]
[347528096,1735903870306,-534.6,0.00010083,2]
[347528097,1735903870315,-1944.18,0.00010083,2]
[347528098,1735903870325,-580.02,0.00010083,2]
[347528099,1735903870335,-500.0,0.00010083,2]
[347528100,1735903870344,-1037.84,0.00010083,2]
[347528101,1735903870354,-500.0,0.00010083,2]
[347528102,1735903870363,-649.2,0.00010083,2]
[347528103,1735903870374,-1930.89,0.00010083,2]
[347528104,1735903870383,-381.15370108,0.00010083,2]
[347528105,1735903870393,-1286.53,0.00010083,2]
[347528106,1735903870402,-500.0,0.00010083,2]
[347528107,1735903870411,-500.0,0.00010083,2]
[347528108,1735903870420,-500.0,0.00010083,2]
[347528109,1735903870430,-500.0,0.00010083,2]
[347528110,1735903870439,-500.0,0.00010083,2]
[347528111,1735903870449,-725.39,0.00010083,2]
[347528112,1735903870458,-1440.89,0.00010083,2]
[347528113,1735903870468,-500.0,0.00010083,2]
[347528114,1735903870478,-500.0,0.00010083,2]
[347528115,1735903870488,-556.98,0.00010083,2]
[347528116,1735903870498,-500.0,0.00010083,2]
[347528117,1735903870508,-849.97,0.00010083,2]
[347528118,1735903870518,-500.0,0.00010083,2]
[347528119,1735903870528,-508.04701684,0.00010083,2]
[347528120,1735903870537,-500.0,0.00010083,2]
[347528121,1735903870547,-240.02750494,0.00010083,2]
[347528122,1735903870556,-966.91,0.00010083,2]
[347528123,1735903870566,-651.0,0.00010083,2]
[347528124,1735903870576,-1048.55,0.00010083,2]
[347528125,1735903870586,-619.92,0.00010083,2]
[347528126,1735903870596,-847.98,0.00010083,2]
[347528127,1735903870606,-500.0,0.00010083,2]
[347528128,1735903870616,-3469.98,0.00010083,2]
[347528129,1735903870627,-544.22165863,0.00010083,2]
[347528130,1735903870638,-500.0,0.00010083,2]
[347528131,1735903870648,-1271.83,0.00010083,2]
[347528132,1735903870658,-2272.14,0.00010083,2]
[347528133,1735903870668,-536.38,0.00010083,2]
[347528134,1735903870678,-3364.24,0.00010083,2]
[347528135,1735903870687,-899.72,0.00010083,2]
[347528136,1735903870697,-500.0,0.00010083,2]
[347528137,1735903870707,-1068.63,0.00010083,2]
[347528138,1735903870717,-1252.08,0.00010083,2]
[347528139,1735903870728,-4553.84,0.00010083,2]
[347528140,1735903870739,-1124.83,0.00010083,2]
[347528141,1735903870749,-629.45,0.00010083,2]
[347528142,1735903870758,-1061.06,0.00010083,2]
[347528143,1735903870769,-648.33,0.00010083,2]
[347528144,1735903870778,-1267.36,0.00010083,2]
[347528145,1735903870788,-2680.52,0.00010083,2]
[347528146,1735903870800,-1938.59,0.00010083,2]
[347528147,1735903870812,-715.06,0.00010083,2]
[347528148,1735903870822,-500.0,0.00010083,2]
[347528149,1735903870831,-500.0,0.00010083,2]
[347528150,1735903870841,-907.13,0.00010083,2]
[347528151,1735903870850,-500.0,0.00010083,2]
[347528152,1735903870862,-780.23,0.00010083,2]
[347528153,1735903870873,-500.0,0.00010083,2]
[347528154,1735903870883,-514.25,0.00010083,2]
[347528155,1735903870894,-1179.59,0.00010083,2]
[347528156,1735903870904,-1047.73,0.00010083,2]
[347528157,1735903870914,-1077.73,0.00010083,2]
[347528158,1735903870926,-6127.31,0.00010083,2]
[347528159,1735903870935,-500.0,0.00010083,2]
[347528160,1735903870946,-500.0,0.00010083,2]
[347528161,1735903870957,-512.48,0.00010083,2]
[347528162,1735903870968,-546.36232796,0.00010083,2]
[347528163,1735903870980,-806.61,0.00010083,2]
[347528164,1735903870990,-1175.7,0.00010083,2]
[347528165,1735903871000,-4371.78,0.00010083,2]
[347528166,1735903871010,-1349.18,0.00010083,2]
[347528167,1735903871020,-500.0,0.00010083,2]
[347528168,1735903871032,-500.0,0.00010083,2]
[347528169,1735903871042,-2014.48,0.00010083,2]
[347528170,1735903871052,-575.95,0.00010083,2]
[347528171,1735903871062,-767.03,0.00010083,2]
[347528172,1735903871071,-1279.74,0.00010083,2]
[347528173,1735903871082,-500.0,0.00010083,2]
[347528174,1735903871093,-9955.92,0.00010083,2]
[347528175,1735903871103,-1327.33,0.00010083,2]
[347528176,1735903871114,-1309.52,0.00010083,2]
[347528177,1735903871124,-1049.06,0.00010083,2]
[347528178,1735903871134,-10938.91,0.00010083,2]
[347528179,1735903871143,-500.0,0.00010083,2]
[347528180,1735903871154,-500.0,0.00010083,2]
[347528181,1735903871163,-664.53,0.00010083,2]
[347528182,1735903871173,-1236.06,0.00010083,2]
[347528183,1735903871183,-2460.33,0.00010083,2]
[347528184,1735903871192,-500.0,0.00010083,2]
[347528185,1735903871202,-504.97,0.00010083,2]
[347528186,1735903871213,-1049.3,0.00010083,2]
[347528187,1735903871223,-500.0,0.00010083,2]
[347528188,1735903871232,-371.69032367,0.00010083,2]
[347528189,1735903871242,-500.0,0.00010083,2]
[347528190,1735903871252,-1004.02,0.00010083,2]
[347528191,1735903871263,-500.0,0.00010083,2]
[347528192,1735903871272,-500.0,0.00010083,2]
[347528193,1735903871282,-1789.45,0.00010083,2]
[347528194,1735903871292,-906.72,0.00010083,2]
[347528195,1735903871302,-554.9,0.00010083,2]
[347528196,1735903871313,-553.7,0.00010083,2]
[347528197,1735903871324,-500.0,0.00010083,2]
[347528198,1735903871334,-1337.39,0.00010083,2]
[347528199,1735903871344,-891.73,0.00010083,2]
[347528200,1735903871354,-3848.06,0.00010083,2]
[347528201,1735903871364,-1814.07,0.00010083,2]
[347528202,1735903871375,-697.05,0.00010083,2]
[347528203,1735903871385,-916.41,0.00010083,2]
[347528204,1735903871396,-500.0,0.00010083,2]
[347528205,1735903871407,-500.0,0.00010083,2]
[347528206,1735903871417,-671.77,0.00010083,2]
[347528207,1735903871427,-196.35738135,0.00010083,2]
[347528208,1735903871437,-1400.09,0.00010083,2]
[347528209,1735903871447,-706.51,0.00010083,2]
[347528210,1735903871457,-1126.89,0.00010083,2]
[347528211,1735903871468,-500.0,0.00010083,2]
[347528212,1735903871477,-930.74,0.00010083,2]
[347528213,1735903871487,-601.77,0.00010083,2]
[347528214,1735903871497,-784.61,0.00010083,2]
[347528215,1735903871507,-903.83,0.00010083,2]
[347528216,1735903871518,-2126.45,0.00010083,2]
[347528217,1735903871530,-1232.35,0.00010083,2]
[347528218,1735903871541,-4086.85,0.00010083,2]
[347528219,1735903871553,-629.11,0.00010083,2]
[347528220,1735903871562,-1624.67,0.00010083,2]
[347528221,1735903871573,-1521.21,0.00010083,2]
[347528222,1735903871583,-500.0,0.00010083,2]
[347528223,1735903871593,-624.24,0.00010083,2]
[347528224,1735903871604,-1753.83,0.00010083,2]
[347528225,1735903871614,-1708.38,0.00010083,2]
[347528226,1735903871625,-500.0,0.00010083,2]
[347528227,1735903871634,-519.48,0.00010083,2]
[347528228,1735903871644,-4100.57,0.00010083,2]
[347528229,1735903871654,-674.1,0.00010083,2]
[347528230,1735903871663,-500.0,0.00010083,2]
[347528231,1735903871673,-2066.74,0.00010083,2]
[347528232,1735903871682,-500.0,0.00010083,2]
[347528233,1735903871691,-831.55,0.00010083,2]
[347528234,1735903871701,-500.0,0.00010083,2]
[347528235,1735903871711,-500.0,0.00010083,2]
[347528236,1735903871722,-11694.5,0.00010083,2]
[347528237,1735903871732,-4058.85,0.00010083,2]
[347528238,1735903871743,-637.0,0.00010083,2]
[347528239,1735903871754,-620.04,0.00010083,2]
[347528240,1735903871763,-1381.08,0.00010083,2]
[347528241,1735903871773,-1156.88,0.00010083,2]
[347528242,1735903871783,-906.08,0.00010083,2]
[347528243,1735903871793,-500.0,0.00010083,2]
[347528244,1735903871802,-500.0,0.00010083,2]
[347528245,1735903871812,-2259.83,0.00010083,2]
[347528246,1735903871822,-500.0,0.00010083,2]
[347528247,1735903871832,-611.21,0.00010083,2]
[347528248,1735903871841,-3858.47,0.00010083,2]
[347528249,1735903871852,-500.0,0.00010084,2]
[347528250,1735903871861,-500.0,0.00010084,2]
[347528251,1735903871873,-700.66,0.00010084,2]
[347528252,1735903871884,-500.0,0.00010084,2]
[347528253,1735903871893,-500.0,0.00010084,2]
[347528254,1735903871903,-7939.32,0.00010084,2]
[347528255,1735903871914,-500.0,0.00010084,2]
[347528256,1735903871923,-635.48,0.00010084,2]
[347528257,1735903871933,-500.0,0.00010084,2]
[347528258,1735903871942,-5549.62,0.00010084,2]
[347528259,1735903871955,-557.7,0.00010084,2]
[347528260,1735903871967,-636.0,0.00010084,2]
[347528261,1735903871977,-500.0,0.00010084,2]
[347528262,1735903871987,-520.71,0.00010084,2]
[347528263,1735903871996,-641.32,0.00010084,2]
[347528264,1735903872006,-611.08,0.00010084,2]
[347528265,1735903872016,-500.0,0.00010084,2]
[347528266,1735903872025,-7296.63,0.00010084,2]
[347528267,1735903872035,-500.0,0.00010084,2]
[347528268,1735903872044,-822.03,0.00010084,2]
[347528269,1735903872054,-543.86,0.00010084,2]
[347528270,1735903872064,-718.88,0.00010084,2]
[347528271,1735903872074,-833.36,0.00010084,2]
[347528272,1735903872087,-500.0,0.00010084,2]
[347528273,1735903872096,-4089.89,0.00010084,2]
[347528274,1735903872105,-1230.62,0.00010084,2]
[347528275,1735903872115,-7327.55,0.00010084,2]
[347528276,1735903872125,-500.0,0.00010084,2]
[347528277,1735903872135,-500.0,0.00010084,2]
[347528278,1735903872144,-948.85,0.00010084,2]
[347528279,1735903872153,-500.0,0.00010084,2]
[347528280,1735903872163,-1278.67,0.00010084,2]
[347528281,1735903872172,-1574.68,0.00010084,2]
[347528282,1735903872182,-534.93,0.00010084,2]
[347528283,1735903872192,-1018.56,0.00010084,2]
[347528284,1735903872201,-6154.2,0.00010084,2]
[347528285,1735903872211,-1511.16,0.00010084,2]
[347528286,1735903872221,-836.15,0.00010084,2]
[347528287,1735903872230,-500.0,0.00010084,2]
[347528288,1735903872240,-500.0,0.00010084,2]
[347528289,1735903872250,-849.26,0.00010084,2]
[347528290,1735903872260,-1027.14,0.00010084,2]
[347528291,1735903872270,-632.01,0.00010084,2]
[347528292,1735903872280,-909.52,0.00010084,2]
[347528293,1735903872290,-1663.85,0.00010084,2]
[347528294,1735903872299,-3662.35,0.00010084,2]
[347528295,1735903872309,-1377.16,0.00010084,2]
[347528296,1735903872319,-526.73,0.00010084,2]
[347528297,1735903872329,-793.4,0.00010084,2]
[347528298,1735903872340,-500.0,0.00010084,2]
[347528299,1735903872350,-500.0,0.00010084,2]
[347528300,1735903872360,-545.36,0.00010084,2]
[347528301,1735903872369,-500.0,0.00010084,2]
[347528302,1735903872380,-661.81,0.00010084,2]
[347528303,1735903872389,-647.05,0.00010084,2]
[347528304,1735903872399,-2889.36,0.00010084,2]
[347528305,1735903872409,-510.38,0.00010084,2]
[347528306,1735903872418,-3413.73,0.00010084,2]
[347528307,1735903872429,-713.31,0.00010084,2]
[347528308,1735903872439,-500.0,0.00010084,2]
[347528309,1735903872450,-1305.11,0.00010084,2]
[347528310,1735903872460,-540.79,0.00010084,2]
[347528311,1735903872470,-1566.1,0.00010084,2]
[347528312,1735903872480,-500.0,0.00010084,2]
[347528313,1735903872491,-3823.37,0.00010084,2]
[347528314,1735903872501,-2969.57,0.00010084,2]
[347528315,1735903872511,-732.01,0.00010084,2]
[347528316,1735903872520,-2547.69,0.00010084,2]
[347528317,1735903872531,-500.0,0.00010084,2]
[347528318,1735903872541,-500.0,0.00010084,2]
[347528319,1735903872551,-500.0,0.00010084,2]
[347528320,1735903872562,-590.72,0.00010084,2]
[347528321,1735903872573,-708.21,0.00010084,2]
[347528322,1735903872583,-1451.02,0.00010084,2]
[347528323,1735903872593,-604.56,0.00010084,2]
[347528324,1735903872603,-1239.18,0.00010084,2]
[347528325,1735903872613,-1012.03,0.00010084,2]
[347528326,1735903872624,-500.0,0.00010084,2]
[347528327,1735903872634,-1218.93,0.00010084,2]
[347528328,1735903872644,-500.0,0.00010084,2]
[347528329,1735903872654,-500.0,0.00010084,2]
[347528330,1735903872664,-500.0,0.00010084,2]
[347528331,1735903872674,-500.0,0.00010084,2]
[347528332,1735903872684,-500.0,0.00010084,2]
[347528333,1735903872694,-500.0,0.00010084,2]
[347528334,1735903872704,-841.48,0.00010084,2]
[347528335,1735903872715,-856.82,0.00010084,2]
[347528336,1735903872724,-500.0,0.00010084,2]
[347528337,1735903872734,-6014.05,0.00010084,2]
[347528338,1735903872744,-1206.92,0.00010084,2]
[347528339,1735903872754,-847.59,0.00010084,2]
[347528340,1735903872764,-500.0,0.00010084,2]
[347528341,1735903872773,-500.0,0.00010084,2]
[347528342,1735903872784,-1042.25,0.00010084,2]
[347528343,1735903872795,-808.75,0.00010084,2]
[347528344,1735903872806,-500.0,0.00010084,2]
[347528345,1735903873128,-2043.7,0.00010084,2]
[347528346,1735903873139,-845.37,0.00010084,2]
[347528347,1735903873149,-500.0,0.00010084,2]
[347528348,1735903873158,-1103.33,0.00010084,2]
[347528349,1735903873168,-655.99,0.00010084,2]
[347528350,1735903873177,-640.49,0.00010084,2]
[347528351,1735903873187,-767.36,0.00010084,2]
[347528352,1735903873197,-1893.34,0.00010084,2]
[347528353,1735903873208,-1366.68,0.00010084,2]
[347528354,1735903873219,-500.0,0.00010084,2]
[347528355,1735903873228,-2621.28,0.00010084,2]
[347528356,1735903873238,-353.13403001,0.00010084,2]
[347528357,1735903873248,-1163.41,0.00010084,2]
[347528358,1735903873257,-500.0,0.00010084,2]
[347528359,1735903873268,-1149.16,0.00010084,2]
[347528360,1735903873279,-500.0,0.00010084,2]
[347528361,1735903873288,-7683.91,0.00010084,2]
[347528362,1735903873298,-1017.12,0.00010084,2]
[347528363,1735903873308,-1827.02,0.00010084,2]
[347528364,1735903873318,-6916.34,0.00010084,2]
[347528365,1735903873328,-1147.15,0.00010084,2]
[347528366,1735903873338,-1250.64,0.00010084,2]
[347528367,1735903873348,-2892.25,0.00010084,2]